fUST/lending_fUST_20260117
["ID","MTS","AMOUNT","RATE_DAILY","PERIOD"]
[402259771,1768629046127,-519.00449958,0.00019178,3]
[402259772,1768629046136,-500.0,0.00019178,3]
[402259773,1768629046146,-500.0,0.00019178,3]
[402259774,1768629046155,-963.56,0.00019178,3]
[402259776,1768629046165,-500.0,0.00019178,3]
[402259778,1768629046176,-1263.46,0.00019178,3]
[402259780,1768629046186,-1264.08,0.00019178,3]
[402259781,1768629046196,-500.4671628,0.00019178,3]
[402259782,1768629046206,-500.0,0.00019178,3]
[402259783,1768629046216,-500.0,0.00019178,3]
[402259784,1768629046226,-500.0,0.00019178,3]
[402259785,1768629046236,-500.0,0.00019178,3]
[402259786,1768629046246,-500.0,0.00019178,3]
[402259787,1768629046255,-500.0,0.00019178,3]
[402259788,1768629046266,-801.67,0.00019178,3]
[402259789,1768629046276,-500.0,0.00019178,3]
[402259790,1768629046286,-500.0,0.00019178,3]
[402259791,1768629046296,-500.0,0.00019178,3]
[402259792,1768629046306,-1507.16,0.00019178,3]
[402259793,1768629046316,-500.0,0.00019178,3]
[402259794,1768629046326,-500.0,0.00019178,3]
[402259795,1768629046336,-500.0,0.00019178,3]
[402259796,1768629046346,-500.0,0.00019178,2]
[402259797,1768629046356,-762.96,0.00019178,2]
[402259798,1768629046366,-664.45,0.00019178,3]
[402259799,1768629046376,-1118.91,0.00019178,3]
[402259800,1768629046386,-546.84675493,0.00019178,3]
[402259801,1768629046396,-500.0,0.00019178,3]
[402259802,1768629046406,-568.77,0.00019178,3]
[402259803,1768629046416,-500.0,0.00019178,3]
[402259804,1768629046426,-508.80948568,0.00019178,3]
[402259805,1768629046436,-530.78,0.00019178,3]
[402259806,1768629046446,-1194.19,0.00019178,3]
[402259807,1768629046456,-500.0,0.00019178,3]
[402259808,1768629046466,-1200.0,0.00019178,3]
[402259809,1768629046476,-500.0,0.00019178,3]
[402259810,1768629046486,-1228.82,0.00019178,3]
[402259811,1768629046495,-165.19879319,0.00019178,3]
[402259812,1768629046505,-500.0,0.00019178,3]
[402259813,1768629046515,-1779.18,0.00019178,3]
[402259814,1768629046525,-500.0,0.00019178,3]
[402259815,1768629046535,-500.0,0.00019178,3]
[402259816,1768629046544,-500.0,0.00019178,3]
[402259817,1768629046554,-500.0,0.00019178,3]
[402259818,1768629046567,-500.0,0.00019178,3]
[402259819,1768629046577,-500.0,0.00019178,3]
[402259820,1768629046586,-610.35,0.00019178,3]
[402259821,1768629046596,-500.0,0.00019178,3]
[402259822,1768629046606,-599.42,0.00019178,3]
[402259823,1768629046615,-612.73,0.00019178,3]
[402259824,1768629046625,-500.0,0.00019178,3]
[402259825,1768629046636,-888.63,0.00019178,3]
[402259826,1768629046645,-500.0,0.00019178,3]
[402259827,1768629046655,-500.0,0.00019178,3]
[402259828,1768629046665,-500.0,0.00019178,3]
[402259829,1768629046675,-500.0,0.00019178,3]
[402259830,1768629046684,-500.0,0.00019178,3]
[402259831,1768629046694,-500.0,0.00019178,3]
[402259832,1768629046704,-737.64,0.00019178,3]
[402259833,1768629046715,-938.1,0.00019178,3]
[402259834,1768629046726,-675.23,0.00019178,3]
[402259835,1768629046735,-500.0,0.00019178,3]
[402259836,1768629046744,-407.41540498,0.00019178,3]
[402259837,1768629046753,-500.0,0.00019178,3]
[402259838,1768629046763,-569.27,0.00019178,3]
[402259839,1768629046771,-579.78697963,0.00019178,2]
[402259840,1768629046779,-1096.3,0.00019178,3]
[402259841,1768629046788,-500.0,0.00019178,3]
[402259842,1768629046797,-500.0,0.00019178,3]
[402259843,1768629046806,-500.0,0.00019178,3]
[402259844,1768629046815,-526.03,0.00019178,3]
[402259845,1768629046824,-500.0,0.00019178,3]
[402259846,1768629046833,-500.0,0.00019178,3]
[402259847,1768629046842,-513.84,0.00019178,3]
[402259848,1768629046852,-500.0,0.00019178,3]
[402259849,1768629046861,-500.0,0.00019178,3]
[402259850,1768629046873,-2537.04,0.00019178,2]
[402259851,1768629046881,-500.0,0.00019178,3]
[402259852,1768629046888,-500.0,0.00019178,3]
[402259853,1768629046895,-500.0,0.00019178,3]
[402259854,1768629046905,-500.0,0.00019178,3]
[402259855,1768629046916,-500.0,0.00019178,3]
[402259856,1768629046927,-500.0,0.00019178,3]
[402259857,1768629046936,-1487.55,0.00019178,3]
[402259858,1768629046948,-524.02,0.00019178,3]
[402259859,1768629046959,-1015.47,0.00019178,3]
[402259860,1768629046969,-500.0,0.00019178,3]
[402259861,1768629046979,-539.29487133,0.00019178,3]
[402259862,1768629046989,-500.0,0.00019178,3]
[402259863,1768629046999,-500.0,0.00019178,3]
[402259864,1768629047009,-500.0,0.00019178,3]
[402259865,1768629047019,-1558.31,0.00019178,3]
[402259866,1768629047031,-1587.55,0.00019178,3]
[402259867,1768629047041,-2026.27,0.00019178,3]
[402259868,1768629047051,-500.0,0.00019178,3]
[402259869,1768629047307,-556.47,0.00019178,3]
[402259870,1768629047366,-500.0,0.00019178,3]
[402259871,1768629047376,-913.62,0.00019178,3]
[402259872,1768629047386,-500.22,0.00019178,3]
[402259873,1768629047396,-2537.04,0.00019178,2]
[402259874,1768629047406,-1112.91,0.00019178,3]
[402259875,1768629047418,-500.0,0.00019178,3]
[402259876,1768629047427,-500.0,0.00019178,3]
[402259877,1768629047438,-628.66,0.00019178,3]
[402259878,1768629047448,-500.0,0.00019178,3]
[402259879,1768629047459,-500.0,0.00019178,3]
[402259880,1768629047469,-451.40995778,0.00019178,3]
[402259881,1768629047478,-500.0,0.00019178,3]
[402259882,1768629047487,-500.0,0.00019178,3]
[402259883,1768629047498,-500.0,0.00019178,3]
[402259884,1768629047509,-651.09,0.00019178,3]
[402259885,1768629047520,-500.0,0.00019178,3]
[402259886,1768629047531,-500.0,0.00019178,3]
[402259887,1768629047541,-502.92,0.00019178,3]
[402259888,1768629047552,-500.0,0.00019178,3]
[402259889,1768629047564,-500.0,0.00019178,3]
[402259890,1768629047574,-1092.61,0.00019178,3]
[402259891,1768629047585,-500.0,0.00019178,3]
[402259892,1768629047595,-500.0,0.00019178,3]
[402259893,1768629047607,-500.0,0.00019178,3]
[402259894,1768629047616,-633.87,0.00019178,3]
[402259895,1768629047625,-1063.36,0.00019178,3]
[402259896,1768629047636,-500.0,0.00019178,3]
[402259897,1768629047645,-500.0,0.00019178,3]
[402259898,1768629047655,-500.0,0.00019178,3]
[402259899,1768629047664,-2080.66,0.00019178,3]
[402259900,1768629047674,-500.0,0.00019178,3]
[402259901,1768629047683,-529.17,0.00019178,3]
[402259902,1768629047691,-1237.9,0.00019178,3]
[402259903,1768629047701,-500.0,0.00019178,3]
[402259904,1768629047714,-500.0,0.00019178,3]
[402259905,1768629047723,-1756.65,0.00019178,3]
[402259906,1768629047732,-500.0,0.00019178,3]
[402259907,1768629047744,-1931.52,0.00019178,3]
[402259908,1768629047754,-500.0,0.00019178,3]
[402259909,1768629047765,-200.0,0.00019178,2]
[402259910,1768629047775,-500.0,0.00019178,3]
[402259911,1768629047786,-500.0,0.00019178,3]
[402259912,1768629047795,-528.74,0.00019178,3]
[402259913,1768629047804,-500.0,0.00019178,3]
[402259914,1768629047814,-500.0,0.00019178,3]
[402259915,1768629047824,-500.0,0.00019178,3]
[402259916,1768629047835,-532.00867925,0.00019178,3]
[402259917,1768629047845,-500.0,0.00019178,3]
[402259918,1768629047854,-500.0,0.00019178,3]
[402259919,1768629047864,-1568.74,0.00019178,3]
[402259920,1768629047874,-500.0,0.00019178,3]
[402259921,1768629047883,-2563.43,0.00019178,3]
[402259922,1768629047893,-1479.53,0.00019178,3]
[402259923,1768629047902,-500.0,0.00019178,3]
[402259924,1768629047913,-500.0,0.00019178,3]
[402259925,1768629047923,-523.21,0.00019178,3]
[402259926,1768629047935,-500.0,0.00019178,3]
[402259927,1768629047945,-151.0,0.00019178,2]
[402259928,1768629047954,-151.0,0.00019178,2]
[402259929,1768629047963,-500.0,0.00019178,3]
[402259930,1768629047972,-613.33,0.00019178,3]
[402259931,1768629047981,-151.0,0.00019178,2]
[402259932,1768629047990,-241.313089,0.00019178,2]
[402259933,1768629047999,-500.0,0.00019178,3]
[402259934,1768629048010,-506.16805049,0.00019178,2]
[402259935,1768629048020,-2012.67,0.00019178,3]
[402259936,1768629048030,-1209.01,0.00019178,3]
[402259937,1768629048039,-500.0,0.00019178,3]
[402259938,1768629048049,-1387.02,0.00019178,3]
[402259939,1768629048058,-500.0,0.00019178,3]
[402259940,1768629048067,-699.23,0.00019178,3]
[402259941,1768629048078,-500.0,0.00019178,3]
[402259942,1768629048087,-500.0,0.00019178,3]
[402259943,1768629048096,-500.0,0.00019178,3]
[402259944,1768629048105,-500.0,0.00019178,3]
[402259945,1768629048114,-500.0,0.00019178,3]
[402259946,1768629048123,-513.94218979,0.00019178,3]
[402259947,1768629048133,-1013.69,0.00019178,3]
[402259948,1768629048143,-500.0,0.00019178,3]
[402259949,1768629048152,-1252.32,0.00019178,3]
[402259950,1768629048161,-500.0,0.00019178,3]
[402259951,1768629048170,-500.0,0.00019178,3]
[402259952,1768629048179,-500.0,0.00019178,3]
[402259953,1768629048188,-500.0,0.00019178,3]
[402259954,1768629048197,-500.0,0.00019178,3]
[402259955,1768629048206,-500.0,0.00019178,3]
[402259956,1768629048215,-885.93,0.00019178,3]
[402259957,1768629048225,-500.0,0.00019178,3]
[402259958,1768629048234,-510.39840049,0.00019178,3]
[402259959,1768629048243,-500.0,0.00019178,3]
[402259960,1768629048253,-500.0,0.00019178,3]
[402259961,1768629048261,-1683.67,0.00019178,3]
[402259962,1768629048270,-500.0,0.00019178,3]
[402259963,1768629048279,-546.55,0.00019178,3]
[402259964,1768629048288,-460.4,0.00019178,3]
[402259965,1768629048297,-1572.28,0.00019178,3]
[402259966,1768629048307,-1088.75,0.00019178,3]
[402259967,1768629048316,-500.0,0.00019178,3]
[402259968,1768629048325,-500.0,0.00019178,3]
[402259969,1768629048335,-500.0,0.00019178,3]
[402259970,1768629048345,-500.0,0.00019178,3]
[402259971,1768629048354,-577.86,0.00019178,3]
[402259972,1768629048363,-500.0,0.00019178,3]
[402259973,1768629048373,-500.0,0.00019178,3]
[402259974,1768629048382,-909.52,0.00019178,3]
[402259975,1768629048392,-731.29,0.00019178,3]
[402259976,1768629048401,-1092.68,0.00019178,3]
[402259977,1768629048410,-500.0,0.00019178,3]
[402259978,1768629048420,-434.84073787,0.00019178,3]
[402259979,1768629048429,-500.0,0.00019178,3]
[402259980,1768629048439,-172.631544,0.00019178,3]
[402259981,1768629048449,-500.0,0.00019178,3]
[402259982,1768629048457,-2229.2,0.00019178,3]
[402259983,1768629048467,-834.01,0.00019178,3]
[402259984,1768629048476,-805.73,0.00019178,3]
[402259985,1768629048485,-1191.37,0.00019178,3]
[402259986,1768629048494,-158.856128,0.00019178,3]
[402259987,1768629048503,-500.0,0.00019178,3]
[402259988,1768629048512,-716.72,0.00019178,3]
[402259989,1768629048521,-615.64,0.00019178,3]
[402259990,1768629048530,-503.32,0.00019178,3]
[402259991,1768629048539,-500.0,0.00019178,3]
[402259992,1768629048548,-500.0,0.00019178,3]
[402259993,1768629048558,-222.32582967,0.00019178,3]
[402259994,1768629048571,-1994.83,0.00019178,3]
[402259995,1768629048581,-2943.61,0.00019178,3]
[402259996,1768629048590,-612.74,0.00019178,3]
[402259997,1768629048600,-500.0,0.00019178,3]
[402259998,1768629048610,-500.0,0.00019178,3]
[402259999,1768629048620,-500.0,0.00019178,3]
[402260000,1768629048630,-500.0,0.00019178,3]
[402260001,1768629048639,-500.0,0.00019178,3]
[402260002,1768629048648,-3952.98,0.00019178,3]
[402260003,1768629048659,-672.65,0.00019178,3]
[402260004,1768629048669,-500.0,0.00019178,3]
[402260005,1768629048679,-500.0,0.00019178,3]
[402260006,1768629048688,-826.15,0.00019178,3]
[402260007,1768629048697,-1784.15,0.00019178,3]
[402260008,1768629048707,-500.0,0.00019178,3]
[402260009,1768629048717,-534.57,0.00019178,3]
[402260010,1768629048727,-747.15,0.00019178,3]
[402260011,1768629048736,-500.0,0.00019178,3]
[402260012,1768629048746,-815.02,0.00019178,3]
[402260013,1768629048755,-500.0,0.00019178,2]
[402260014,1768629048764,-500.0,0.00019178,3]
[402260015,1768629048774,-1066.48,0.00019178,3]
[402260016,1768629048783,-500.0,0.00019178,3]
[402260017,1768629048792,-500.0,0.00019178,3]
[402260018,1768629048802,-613.7,0.00019178,3]
[402260019,1768629048811,-500.0,0.00019178,3]
[402260020,1768629048821,-500.0,0.00019178,3]
[402260021,1768629048832,-590.53,0.00019178,3]
[402260022,1768629048842,-1014.29,0.00019178,3]
[402260023,1768629048851,-500.0,0.00019178,3]
[402260024,1768629048861,-660.67,0.00019178,3]
[402260025,1768629048871,-500.0,0.00019178,3]
[402260026,1768629048881,-1974.46,0.00019178,3]
[402260027,1768629048890,-500.0,0.00019178,3]
[402260028,1768629048901,-500.0,0.00019178,3]
[402260029,1768629048911,-870.65,0.00019178,3]
[402260030,1768629048920,-341.99608753,0.00019178,3]
[402260031,1768629048929,-500.0,0.00019178,3]
[402260032,1768629048939,-1592.47,0.00019178,3]
[402260033,1768629048949,-500.0,0.00019178,3]
[402260034,1768629048959,-984.65,0.00019178,3]
[402260035,1768629048968,-500.0,0.00019178,3]
[402260036,1768629048978,-16059.97,0.00019178,3]
[402260037,1768629048988,-884.02,0.00019178,3]
[402260038,1768629048998,-619.51,0.00019178,3]
[402260039,1768629049007,-500.0,0.00019178,3]
[402260040,1768629049017,-500.0,0.00019178,3]
[402260041,1768629049027,-673.89,0.00019178,3]
[402260042,1768629049037,-1150.52,0.00019178,3]
[402260043,1768629049047,-1504.26,0.00019178,3]
[402260044,1768629049057,-1014.31,0.00019178,3]
[402260045,1768629049067,-500.0,0.00019178,3]
[402260046,1768629049076,-500.0,0.00019178,3]
[402260047,1768629049085,-500.0,0.00019178,3]
[402260048,1768629049095,-500.0,0.00019178,3]
[402260049,1768629049104,-500.0,0.00019178,3]
[402260050,1768629049114,-500.0,0.00019178,3]
[402260051,1768629049123,-500.0,0.00019178,3]
[402260052,1768629049133,-1794.67,0.00019178,3]
[402260053,1768629049142,-696.06,0.00019178,3]
[402260054,1768629049153,-500.0,0.00019178,3]
[402260055,1768629049162,-500.0,0.00019178,3]
[402260056,1768629049171,-2225.71,0.00019178,3]
[402260057,1768629049180,-500.0,0.00019178,3]
[402260058,1768629049190,-419.77,0.00019178,2]
[402260059,1768629049199,-500.0,0.00019178,3]
[402260060,1768629049210,-500.0,0.00019178,3]
[402260061,1768629049220,-1141.81,0.00019178,3]
[402260062,1768629049230,-1791.99,0.00019178,3]
[402260063,1768629049240,-500.0,0.00019178,3]
[402260064,1768629049250,-1190.02,0.00019178,3]
[402260065,1768629049260,-500.0,0.00019178,3]
[402260066,1768629049270,-500.0,0.00019178,3]
[402260067,1768629049280,-1252.13,0.00019178,3]
[402260068,1768629049291,-1000.0,0.00019178,2]
[402260069,1768629049301,-500.0,0.00019178,3]
[402260070,1768629049310,-500.0,0.00019178,3]
[402260071,1768629049319,-218.2240779,0.00019178,3]
[402260072,1768629049328,-1004.53,0.00019178,3]
[402260073,1768629049337,-500.0,0.00019178,3]
[402260074,1768629049347,-500.0,0.00019178,3]
[402260075,1768629049356,-1089.54,0.00019178,3]
[402260076,1768629049365,-861.16,0.00019178,3]
[402260077,1768629049374,-500.0,0.00019178,3]
[402260078,1768629049383,-500.0,0.00019178,3]
[402260079,1768629049392,-500.0,0.00019178,3]
[402260080,1768629049401,-500.0,0.00019178,3]
[402260081,1768629049410,-994.23,0.00019178,3]
[402260082,1768629049420,-536.81,0.00019178,3]
[402260083,1768629049429,-512.31691657,0.00019178,3]
[402260084,1768629049439,-500.0,0.00019178,3]
[402260085,1768629049448,-557.75392574,0.00019178,3]
[402260086,1768629049458,-666.48,0.00019178,3]
[402260087,1768629049468,-561.83,0.00019178,3]
[402260088,1768629049477,-500.0,0.00019178,3]
[402260089,1768629049487,-500.0,0.00019178,3]
[402260090,1768629049496,-1586.81,0.00019178,3]
[402260091,1768629049506,-500.0,0.00019178,3]
[402260092,1768629049516,-500.0,0.00019178,3]
[402260093,1768629049526,-500.0,0.00019178,3]
[402260094,1768629049535,-509.7651277,0.00019178,3]
[402260095,1768629049545,-500.0,0.00019178,3]
[402260096,1768629049556,-500.0,0.00019178,3]
[402260097,1768629049572,-1409.46,0.00019178,3]
[402260098,1768629049583,-500.0,0.00019178,3]
[402260099,1768629049593,-754.38,0.00019178,3]
[402260100,1768629049603,-606.77,0.00019178,3]
[402260101,1768629049616,-500.0,0.00019178,3]
[402260102,1768629049625,-500.0,0.00019178,3]
[402260103,1768629049635,-1692.82,0.00019178,3]
[402260104,1768629049644,-1310.48,0.00019178,3]
[402260105,1768629049653,-500.0,0.00019178,3]
[402260106,1768629049733,-591.91,0.00019178,3]
[402260107,1768629049743,-500.0,0.00019178,3]
[402260108,1768629049752,-593.53,0.00019178,3]
[402260109,1768629049762,-500.0,0.00019178,2]
[402260110,1768629049771,-571.49,0.00019178,3]
[402260111,1768629049781,-500.0,0.00019178,3]
[402260112,1768629049792,-772.76,0.00019178,3]
[402260113,1768629049801,-762.09,0.00019178,3]
[402260114,1768629049811,-1494.01,0.00019178,3]
[402260115,1768629049821,-1627.4,0.00019178,3]
[402260116,1768629049832,-500.0,0.00019178,3]
[402260117,1768629049843,-500.0,0.00019178,3]
[402260118,1768629049853,-1228.96,0.00019178,3]
[402260119,1768629049863,-1514.75,0.00019178,3]
[402260120,1768629049872,-500.0,0.00019178,3]
[402260121,1768629049882,-500.0,0.00019178,3]
[402260122,1768629049891,-836.37,0.00019178,3]
[402260123,1768629049901,-500.0,0.00019178,3]
[402260124,1768629049910,-500.0,0.00019178,3]
[402260125,1768629049919,-555.92,0.00019178,3]
[402260126,1768629049928,-200.0,0.00019178,2]
[402260127,1768629049938,-1128.36,0.00019178,3]
[402260128,1768629049947,-500.0,0.00019178,3]
[402260129,1768629049957,-500.0,0.00019178,3]
[402260130,1768629049966,-819.93,0.00019178,3]
[402260131,1768629049975,-2793.9,0.00019178,3]
[402260132,1768629049984,-500.0,0.00019178,3]
[402260133,1768629049993,-500.0,0.00019178,3]
[402260134,1768629050003,-500.0,0.00019178,3]
[402260135,1768629050013,-500.0,0.00019178,3]
[402260136,1768629050022,-500.0,0.00019178,3]
[402260137,1768629050032,-730.77,0.00019178,3]
[402260138,1768629050041,-500.0,0.00019178,3]
[402260139,1768629050049,-578.38164143,0.00019178,3]
[402260140,1768629050058,-995.04,0.00019178,3]
[402260141,1768629050068,-500.0,0.00019178,3]
[402260142,1768629050077,-500.0,0.00019178,3]
[402260143,1768629050086,-666.1,0.00019178,3]
[402260144,1768629050096,-500.0,0.00019178,3]
[402260145,1768629050106,-500.0,0.00019178,3]
[402260146,1768629050115,-523.31,0.00019178,3]
[402260147,1768629050125,-500.0,0.00019178,3]
[402260148,1768629050135,-754.41,0.00019178,3]
[402260149,1768629050146,-500.0,0.00019178,3]
[402260150,1768629050155,-2937.59,0.00019178,3]
[402260151,1768629050164,-1473.59,0.00019178,3]
[402260152,1768629050173,-1345.83,0.00019178,3]
[402260153,1768629050182,-500.0,0.00019178,3]
[402260154,1768629050192,-500.0,0.00019178,3]
[402260155,1768629050202,-500.0,0.00019178,3]
[402260156,1768629050211,-789.74,0.00019178,3]
[402260157,1768629050221,-479.31164843,0.00019178,3]
[402260158,1768629050231,-500.0,0.00019178,3]
[402260159,1768629050239,-500.0,0.00019178,3]
[402260160,1768629050248,-500.0,0.00019178,3]
[402260161,1768629050258,-500.0,0.00019178,3]
[402260162,1768629050266,-887.22,0.00019178,3]
[402260163,1768629050275,-500.0,0.00019178,3]
[402260164,1768629050285,-508.51651972,0.00019178,3]
[402260165,1768629050294,-500.0,0.00019178,3]
[402260166,1768629050303,-500.0,0.00019178,3]
[402260167,1768629050313,-500.0,0.00019178,3]
[402260168,1768629050322,-500.0,0.00019178,3]
[402260169,1768629050331,-500.0,0.00019178,3]
[402260170,1768629050340,-500.0,0.00019178,3]
[402260171,1768629050349,-500.0,0.00019178,3]
[402260172,1768629050358,-723.07,0.00019178,3]
[402260173,1768629050367,-500.0,0.00019178,3]
[402260174,1768629050376,-1519.31,0.00019178,3]
[402260175,1768629050385,-500.0,0.00019178,3]
[402260176,1768629050395,-546.88319481,0.00019178,3]
[402260177,1768629050405,-1388.11,0.00019178,3]
[402260178,1768629050414,-500.0,0.00019178,3]
[402260179,1768629050423,-500.0,0.00019178,3]
[402260180,1768629050432,-559.02,0.00019178,3]
[402260181,1768629050441,-500.0,0.00019178,3]
[402260182,1768629050451,-8808.39,0.00019178,3]
[402260183,1768629050460,-500.0,0.00019178,3]
[402260184,1768629050469,-500.0,0.00019178,3]
[402260185,1768629050479,-500.0,0.00019178,3]
[402260186,1768629050487,-500.0,0.00019178,3]
[402260187,1768629050496,-500.0,0.00019178,3]
[402260188,1768629050506,-1092.11,0.00019178,3]
[402260189,1768629050515,-500.0,0.00019178,3]
[402260190,1768629050524,-500.0,0.00019178,3]
[402260191,1768629050533,-500.0,0.00019178,3]
[402260192,1768629050543,-2068.85,0.00019178,2]
[402260193,1768629050553,-818.36,0.00019178,3]
[402260194,1768629050567,-500.0,0.00019178,3]
[402260195,1768629050576,-500.0,0.00019178,3]
[402260196,1768629050585,-500.0,0.00019178,3]
[402260197,1768629050595,-500.0,0.00019178,3]
[402260198,1768629050605,-500.0,0.00019178,3]
[402260199,1768629050614,-816.19,0.00019178,3]
[402260200,1768629050624,-500.0,0.00019178,3]
[402260201,1768629050633,-500.0,0.00019178,3]
[402260202,1768629050643,-500.0,0.00019178,3]
[402260203,1768629050653,-1023.1,0.00019178,3]
[402260204,1768629050663,-276.48121689,0.00019178,3]
[402260205,1768629050672,-518.46662048,0.00019178,3]
[402260206,1768629050683,-1384.37,0.00019178,3]
[402260207,1768629050693,-1000.0,0.00019178,2]
[402260208,1768629050703,-500.0,0.00019178,3]
[402260209,1768629050712,-703.46,0.00019178,3]
[402260210,1768629050721,-500.0,0.00019178,3]
[402260211,1768629050731,-3350.84,0.00019178,3]
[402260212,1768629050740,-500.0,0.00019178,3]
[402260213,1768629050749,-500.0,0.00019178,3]
[402260214,1768629050761,-500.0,0.00019178,3]
[402260215,1768629050771,-500.0,0.00019178,3]
[402260216,1768629050782,-1293.83,0.00019178,3]
[402260217,1768629050791,-2467.87,0.00019178,3]
[402260218,1768629050801,-500.0,0.00019178,3]
[402260219,1768629050811,-607.17,0.00019178,3]
[402260220,1768629050820,-500.0,0.00019178,3]
[402260221,1768629050831,-500.0,0.00019178,3]
[402260222,1768629050842,-1641.05,0.00019178,3]
[402260223,1768629050851,-500.0,0.00019178,3]
[402260224,1768629050861,-627.98,0.00019178,3]
[402260225,1768629050870,-858.73,0.00019178,3]
[402260226,1768629050880,-500.0,0.00019178,3]
[402260227,1768629050890,-500.0,0.00019178,3]
[402260228,1768629050899,-500.0,0.00019178,3]
[402260229,1768629050909,-500.0,0.00019178,3]
[402260230,1768629050919,-1348.46,0.00019178,3]
[402260231,1768629050928,-2128.12,0.00019178,3]
[402260232,1768629050936,-608.02,0.00019178,3]
[402260233,1768629050946,-599.53,0.00019178,3]
[402260234,1768629050955,-500.0,0.00019178,3]
[402260235,1768629050966,-1583.41,0.00019178,3]
[402260236,1768629050975,-1732.14,0.00019178,3]
[402260237,1768629050985,-500.0,0.00019178,3]
[402260238,1768629050994,-500.0,0.00019178,3]
[402260239,1768629051004,-500.0,0.00019178,3]
[402260240,1768629051014,-500.0,0.00019178,3]
[402260241,1768629051023,-500.0,0.00019178,3]
[402260242,1768629051032,-509.94393011,0.00019178,3]
[402260243,1768629051042,-189.36310647,0.00019178,3]
[402260244,1768629051051,-500.0,0.00019178,3]
[402260245,1768629051061,-500.0,0.00019178,3]
[402260246,1768629051070,-500.0,0.00019178,3]
[402260247,1768629051080,-500.0,0.00019178,3]
[402260248,1768629051089,-1160.43,0.00019178,3]
[402260249,1768629051099,-500.0,0.00019178,3]
[402260250,1768629051109,-500.0,0.00019178,3]
[402260251,1768629051119,-500.0,0.00019178,3]
[402260252,1768629051129,-500.0,0.00019178,3]
[402260253,1768629051138,-500.0,0.00019178,3]
[402260254,1768629051147,-500.0,0.00019178,3]
[402260255,1768629051157,-500.0,0.00019178,3]
[402260256,1768629051166,-500.0,0.00019178,3]
[402260257,1768629051177,-1137.09,0.00019178,3]
[402260258,1768629051187,-742.32,0.00019178,3]
[402260259,1768629051196,-765.07,0.00019178,3]
[402260260,1768629051206,-530.24,0.00019178,3]
[402260261,1768629051216,-861.64,0.00019178,3]
[402260262,1768629051224,-500.0,0.00019178,3]
[402260263,1768629051234,-1663.78,0.00019178,3]
[402260264,1768629051243,-500.0,0.00019178,3]
[402260265,1768629051252,-630.38,0.00019178,3]
[402260266,1768629051262,-500.0,0.00019178,3]
[402260267,1768629051271,-1925.72,0.00019178,3]
[402260268,1768629051281,-500.0,0.00019178,3]
[402260269,1768629051290,-500.0,0.00019178,3]
[402260270,1768629051300,-504.57766204,0.00019178,3]
[402260271,1768629051309,-528.93,0.00019178,3]
[402260272,1768629051318,-960.95,0.00019178,3]
[402260273,1768629051328,-724.07,0.00019178,3]